Workbook

Sheet 17년 DQMS 연간심사계획서
B3: 업체 정보
B5: 인증번호 | C5: 업체명 | D5: 유효기간 | E5: 유효월 | F5: 센터 | G5: 심사 | H5: 심사 일정
B6: 1 | C6: ㈜한화 대전사업장 | D6: 14.6.29 ~ 17.6.28 | E6: 6월 | F6: 탄약 | G6: 갱신 | H6: 3월 5주
B7: 2 | C7: ㈜LIG넥스원 | D7: 14.7.23 ~ 17.7.22 | E7: 7월 | F7: 유도전자 | G7: 갱신 | H7: 4월 4주
B8: 3 | C8: 한화시스템㈜ (구,한화탈레스㈜) | D8: 14.8.24 ~ 17.8.23 | E8: 8월 | F8: 유도전자 | G8: 갱신 | H8: 5월 3주
B9: 4 | C9: 한화테크윈㈜ 엔진사업본부 구, 삼성테크윈㈜ 2사업장 | D9: 14.8.30 ~ 17.8.29 | E9: 8월 | F9: 항공 | G9: 갱신 | H9: 5월 4주
B10: 5 | C10: ㈜풍산 안강사업장 | D10: 15.2.23 ~ 18.2.22 | E10: 2월 | F10: 탄약 | G10: 사후/갱신 | H10: 1월3주/11월2주
B11: 7 | C11: ㈜한화 보은사업장 | D11: 14.11.18 ~ 17.11.17 | E11: 11월 | F11: 탄약 | G11: 갱신 | H11: 8월 3주
B12: 8 | C12: ㈜한화 여수사업장 | D12: 14.10. 5 ~ 17.10. 4 | E12: 10월 | F12: 탄약 | G12: 갱신 | H12: 7월 1주
B13: 9 | C13: S&T 모티브㈜ | D13: 14.8.16 ~ 17.8.15 | E13: 8월 | F13: 기동화력 | G13: 갱신 | H13: 5월 2주
B14: 10 | C14: ㈜풍산 부산사업장 | D14: 14.12.16 ~ 17.12.15 | E14: 12월 | F14: 탄약 | G14: 갱신 | H14: 9월 1주
B15: 11 | C15: 한화디펜스(구, 두산DST) | D15: 14.8.1 ~ 17.7.31 | E15: 7월 | F15: 기동화력 | G15: 갱신 | H15: 5월 1주
B16: 12 | C16: 현대로템㈜ 중기사업본부 | D16: 14.12.28 ~ 17.12.27 | E16: 12월 | F16: 기동화력 | G16: 갱신 | H16: 9월 4주
B17: 13 | C17: ㈜대한항공 항공우주사업본부 | D17: 14.12.28 ~ 17.12.27 | E17: 12월 | F17: 항공 | G17: 갱신 | H17: 9월 3주
B18: 14 | C18: S&T중공업㈜ 특수사업본부 | D18: 15.7.12 ~ 18.7.11 | E18: 7월 | F18: 기동화력 | G18: 사후 | H18: 6월 2주
B19: 15 | C19: ㈜두산 모트롤BG 창원공장 | D19: 15.2.24 ~ 18.2.23 | E19: 2월 | F19: 기동화력 | G19: 사후/갱신 | H19: 2월 2주/11월3주
B20: 16 | C20: 두원중공업㈜ | D20: 15.3.30 ~ 18.3.29 | E20: 3월 | F20: 기동화력 | G20: 사후 | H20: 3월 1주
B21: 17 | C21: 평화산업㈜ | D21: 15.5.10 ~ 18.5.9 | E21: 5월 | F21: 기동화력 | G21: 사후 | H21: 4월 1주
B22: 18 | C22: 티씨케이텍스타일㈜ | D22: 15.5.10 ~ 18.5.9 | E22: 5월 | F22: 전투물자 | G22: 사후 | H22: 3월 5주
B23: 19 | C23: 동양종합식품㈜ | D23: 16.6.14 ~ 19.6.13 | E23: 6월 | F23: 전투물자 | G23: 사후 | H23: 5월 2주
B24: 23 | C24: ㈜풍산FNS | D24: 15.5.29 ~ 18.5.28 | E24: 5월 | F24: 탄약 | G24: 사후 | H24: 4월 4주
B25: 24 | C25: 연합정밀㈜ | D25: 14.7.8 ~ 17.7.7 | E25: 7월 | F25: 유도전자 | G25: 갱신 | H25: 4월 1주
B26: 25 | C26: 고려화공㈜ | D26: 15.12.28 ~ 18.12.27 | E26: 12월 | F26: 탄약 | G26: 사후 | H26: 11월 2주
B27: 26 | C27: LS엠트론㈜ 전주공장 | D27: 15. 8. 9 ~ 18. 8. 8 | E27: 8월 | F27: 기동화력 | G27: 사후 | H27: 7월 1주
B28: 27 | C28: 현대중공업㈜ 조선사업본부 특수선부문 | D28: 15.4.29 ~ 18.4.28 | E28: 4월 | F28: 함정 | G28: 사후 | H28: 3월 5주
B29: 28 | C29: 기아자동차㈜ 광주공장 | D29: 15.10.25 ~ 18.10.24 | E29: 10월 | F29: 기동화력 | G29: 사후 | H29: 9월 4주
B30: 30 | C30: 대우조선해양㈜ 특수선사업부 | D30: 15.10.25 ~ 18.10.24 | E30: 10월 | F30: 함정 | G30: 사후 | H30: 8월 5주
B31: 31 | C31: 현대다이모스㈜ | D31: 16.7.13 ~ 19.7.12 | E31: 7월 | F31: 기동화력 | G31: 사후 | H31: 6월 3주
B32: 32 | C32: ㈜참맛 | D32: 15.12.6 ~ 18.12.5 | E32: 12월 | F32: 전투물자 | G32: 사후 | H32: 10월 3주
B33: 33 | C33: ㈜휴니드테크놀러지 | D33: 16.1.10~19.1.9 | E33: 1월 | F33: 유도전자 | G33: 사후 | H33: 12월 1주
B34: 34 | C34: 삼양화학공업㈜ | D34: 16.1.10 ~ 19.1.9 | E34: 1월 | F34: 전투물자 | G34: 사후 | H34: 11월 4주
B35: 35 | C35: 현대위아㈜ | D35: 16.1.10 ~ 19.1.9 | E35: 1월 | F35: 기동화력 | G35: 사후 | H35: 11월 4주
B36: 36 | C36: ㈜STX엔진 | D36: 16.2.19 ~ 19.2.18 | E36: 2월 | F36: 기동화력 | G36: 사후 | H36: 1월 3주
B37: 37 | C37: 엠플러스에프엔씨㈜ 제화사업본부(구, 군인공제회 제일F&C 제화사업본부) | D37: 15.9.26 ~ 18.9.25 | E37: 9월 | F37: 전투물자 | G37: 사후 | H37: 8월 4주
B38: 38 | C38: ㈜우진정밀 | D38: 16.3.6 ~ 19.3.5 | E38: 3월 | F38: 기동화력 | G38: 사후 | H38: 2월 2주
B39: 39 | C39: 태림농산 | D39: 16.3.6 ~ 19.3.5 | E39: 3월 | F39: 전투물자 | G39: 사후 | H39: 3월 1주
B40: 40 | C40: ㈜대명 | D40: 16.4.12 ~ 19.4.11 | E40: 4월 | F40: 전투물자 | G40: 사후 | H40: 3월 2주
B41: 41 | C41: 덕인산업 | D41: 16.4.12 ~ 19.4.11 | E41: 4월 | F41: 기동화력 | G41: 사후 | H41: 3월 2주
B42: 43 | C42: ㈜강남 | D42: 16.7.2 ~ 19.7.1 | E42: 7월 | F42: 함정 | G42: 사후 | H42: 4월 4주
B43: 44 | C43: 두산중공업㈜방산BU | D43: 16.7.2 ~ 19.7.1 | E43: 7월 | F43: 기동화력 | G43: 사후 | H43: 5월 3주
B44: 46 | C44: ㈜에이치케이씨 | D44: 15.3.20 ~ 18.3.19 | E44: 3월 | F44: 유도전자 | G44: 사후/갱신 | H44: 2월3주/12월2주
B45: 49 | C45: 대한방직㈜ | D45: 16.11.1 ~ 19.10.31 | E45: 10월 | F45: 전투물자 | G45: 사후 | H45: 면 제
B46: 51 | C46: ㈜한화 항공사업부 (구, 아산1사업장) | D46: 13.12.29 ~ 16.12.28 | E46: 12월 | F46: 항공 | G46: 사후 | H46: 10월 2주
B47: 52 | C47: ㈜한화 구미사업장 | D47: 14.2.9 ~ 17.2.8 | E47: 2월 | F47: 탄약 | G47: 사후 | H47: 18년 1월
B48: 53 | C48: 한일단조공업㈜ | D48: 14.2.9 ~ 17.2.8 | E48: 2월 | F48: 탄약 | G48: 사후 | H48: 18년 1월
B49: 54 | C49: 한국항공우주산업㈜ | D49: 14.2.9 ~ 17.2.8 | E49: 2월 | F49: 항공 | G49: 사후 | H49: 18년 1월
B50: 59 | C50: ㈜한진중공업 방산부문 | D50: 14.6.26 ~ 17.6.25 | E50: 6월 | F50: 함정 | G50: 갱신 | H50: 3월 4주
B51: 60 | C51: ㈜광림 | D51: 14.6.26 ~ 17.6.25 | E51: 6월 | F51: 기동화력 | G51: 갱신 | H51: 3월 4주
B52: 62 | C52: 에스지생활안전㈜ | D52: 13.12.21 ~ 16.12.20 | E52: 12월 | F52: 전투물자 | G52: 사후 | H52: 9월 1주
B53: 67 | C53: ㈜퍼스텍 | D53: 15.10.29 ~ 18.10.28 | E53: 10월 | F53: 유도전자 | G53: 사후 | H53: 10월 1주
B54: 68 | C54: 복천식품㈜ | D54: 15.12.15 ~ 18.12.14 | E54: 12월 | F54: 전투물자 | G54: 사후 | H54: 10월 4주
B55: 69 | C55: ㈜서부에스코 | D55: 16.2.16 ~ 19.2.15 | E55: 2월 | F55: 전투물자 | G55: 사후 | H55: 1월 4주
B56: 74 | C56: 이화전기공업㈜ | D56: 14.3.29 ~ 17.3.28 | E56: 3월 | F56: 유도전자 | G56: 갱신 | H56: 1월 2주
B57: 76 | C57: 영풍전자㈜ | D57: 14.7.8 ~ 17.7.7 | E57: 7월 | F57: 유도전자 | G57: 갱신 | H57: 4월 1주
B58: 78 | C58: ㈜이오시스템 | D58: 14.9.1 ~ 17.8.31 | E58: 8월 | F58: 유도전자 | G58: 갱신 | H58: 5월 4주
B59: 79 | C59: 충무정밀㈜ | D59: 15.1.24 ~ 18.1.23 | E59: 1월 | F59: 유도전자 | G59: 사후/갱신 | H59: 1월3주/10월2주
B60: 82 | C60: 동해식품㈜ | D60: 15.3.20 ~ 18.3.19 | E60: 3월 | F60: 전투물자 | G60: 면제/갱신 | H60: 12월2주
B61: 84 | C61: ㈜동원홈푸드 | D61: 15.5.22 ~ 18.5.21 | E61: 5월 | F61: 전투물자 | G61: 사후 | H61: 4월 3주
B62: 85 | C62: ㈜한국화이바 | D62: 15.5.22 ~ 18.5.21 | E62: 5월 | F62: 전투물자 | G62: 사후 | H62: 4월 3주
B63: 86 | C63: 코오롱데크컴퍼지트㈜ | D63: 15.6.15 ~ 18.6.14 | E63: 6월 | F63: 기동화력 | G63: 사후 | H63: 5월 3주
B64: 87 | C64: ㈜경도 | D64: 16.2.20 ~ 19.2.19 | E64: 2월 | F64: 기동화력 | G64: 사후 | H64: 18년 1월
B65: 88 | C65: 유양산전㈜ | D65: 16.3.12 ~ 19.3.11 | E65: 3월 | F65: 유도전자 | G65: 사후 | H65: 2월 2주
B66: 89 | C66: ㈜삼양컴텍 | D66: 16.3.30 ~ 19.3.29 | E66: 3월 | F66: 전투물자 | G66: 사후 | H66: 3월 1주
B67: 90 | C67: 영광산업사 | D67: 16.6.14 ~ 19.6.13 | E67: 6월 | F67: 기동화력 | G67: 사후 | H67: 5월 2주
B68: 91 | C68: ㈜우창 | D68: 16.6.14 ~ 19.6.13 | E68: 6월 | F68: 기동화력 | G68: 사후 | H68: 5월 2주
B69: 92 | C69: 테크플라워 구, (주)해안기계산업 | D69: 16.7.20 ~ 19.7.19 | E69: 7월 | F69: 함정 | G69: 사후 | H69: 4월 4주
B70: 93 | C70: STX엔진㈜ 용인사업장 | D70: 16.9.28 ~ 19.9.27 | E70: 9월 | F70: 유도전자 | G70: 사후 | H70: 6월 4주
B71: 94 | C71: ㈜네이스코 | D71: 16.9.28 ~ 19.9.27 | E71: 9월 | F71: 전투물자 | G71: 사후 | H71: 6월 4주
B72: 95 | C72: ㈜대립 | D72: 16.9.28 ~ 19.9.27 | E72: 9월 | F72: 기동화력 | G72: 사후 | H72: 7월 4주
B73: 96 | C73: ㈜비츠로셀 | D73: 13.12.7 ~ 16.12.6 | E73: 12월 | F73: 유도전자 | G73: 사후 | H73: 9월 1주
B74: 99 | C74: 동일쉘터시스템 | D74: 13.12.27 ~ 16.12.26 | E74: 12월 | F74: 전투물자 | G74: 사후 | H74: 11월 3주
B75: 100 | C75: 대호정기㈜ | D75: 13.12.27 ~ 16.12.26 | E75: 12월 | F75: 기동화력 | G75: 사후 | H75: 11월 2주
B76: 101 | C76: ㈜대성테크 | D76: 14.4.11 ~ 17.4.10 | E76: 4월 | F76: 전투물자 | G76: 갱신 | H76: 1월 4주
B77: 102 | C77: ㈜대창그랜드 | D77: 14.4.30 ~ 17.4.29 | E77: 4월 | F77: 전투물자 | G77: 갱신 | H77: 1월 4주
B78: 105 | C78: ㈜동진전기 | D78: 14.9.4 ~ 17.9.3 | E78: 9월 | F78: 기동화력 | G78: 갱신 | H78: 6월 1주
B79: 107 | C79: 삼오종합식품㈜ | D79: 14.12.31 ~ 17.12.30 | E79: 12월 | F79: 전투물자 | G79: 갱신 | H79: 9월 4주
B80: 109 | C80: ㈜동명양행 | D80: 14.9.18 ~ 17.9.17 | E80: 9월 | F80: 전투물자 | G80: 갱신 | H80: 6월 2주
B81: 112 | C81: 삼덕상공㈜ | D81: 15.2.9 ~ 18.2.8 | E81: 2월 | F81: 전투물자 | G81: 사후/갱신 | H81: 1월3주/10월4주
B82: 113 | C82: ㈜동성전기 | D82: 15.3.5 ~ 18.3.4 | E82: 3월 | F82: 기동화력 | G82: 사후/갱신 | H82: 2월1주/12월1주
B83: 114 | C83: ㈜밀텍엔지니어링 | D83: 15.3.9 ~ 18.3.8 | E83: 3월 | F83: 유도전자 | G83: 사후/갱신 | H83: 2월3주/12월2주
B84: 116 | C84: 동우산업사 | D84: 15.5.11 ~ 18.5.10 | E84: 5월 | F84: 전투물자 | G84: 사후 | H84: 4월 2주
B85: 117 | C85: 신생용사촌보훈복지㈜ (전우) | D85: 12.8.18 ~ 15.8.17 | E85: 8월 | F85: 탄약 | G85: 사후 | H85: 7월 3주
B86: 118 | C86: 성진씨앤티㈜ | D86: 15.11.3 ~ 18.11.2 | E86: 11월 | F86: 유도전자 | G86: 사후 | H86: 10월 1주
B87: 120 | C87: ㈜창신섬유 | D87: 15.11.9 ~ 18.11.8 | E87: 11월 | F87: 전투물자 | G87: 사후 | H87: 10월 1주
B88: 121 | C88: 강서실업 | D88: 15.11.9 ~ 18.11.8 | E88: 11월 | F88: 전투물자 | G88: 사후 | H88: 10월 1주
B89: 122 | C89: 건웅테크㈜ | D89: 15.11.10 ~ 18.11.9 | E89: 11월 | F89: 기동화력 | G89: 사후/사후 | H89: 2월2주/10월4주
B90: 123 | C90: 한국씨앤오테크㈜ | D90: 15.12.17 ~ 18.12.16 | E90: 12월 | F90: 탄약 | G90: 사후 | H90: 10월 4주
B91: 125 | C91: 세복식품 | D91: 16.3.9 ~ 19.3.8 | E91: 3월 | F91: 전투물자 | G91: 사후 | H91: 2월 2주
B92: 126 | C92: ㈜티젠 | D92: 16.3.31 ~ 19.3.30 | E92: 3월 | F92: 기동화력 | G92: 사후 | H92: 3월 1주
B93: 128 | C93: 샬롬산업(주) | D93: 16.5.12 ~ 19.5.11 | E93: 5월 | F93: 전투물자 | G93: 사후 | H93: 4월 2주
B94: 131 | C94: 백모실업 | D94: 16.11.22 ~ 19.11.21 | E94: 11월 | F94: 전투물자 | G94: 사후 | H94: 8월 3주
B95: 132 | C95: 삼한섬유 | D95: 16.11.22 ~ 19.11.21 | E95: 11월 | F95: 전투물자 | G95: 사후 | H95: 9월 2주
B96: 133 | C96: ㈜방림 | D96: 13.12.21 ~ 16.12.20 | E96: 12월 | F96: 전투물자 | G96: 사후 | H96: 10월 2주
B97: 135 | C97: ㈜삼정터빈 | D97: 13.12.21 ~ 16.12.20 | E97: 12월 | F97: 기동화력 | G97: 사후 | H97: 10월 2주
B98: 136 | C98: ㈜산청 | D98: 14.1.25 ~ 17.1.24 | E98: 1월 | F98: 전투물자 | G98: 사후 | H98: 12월 3주
B99: 137 | C99: ㈜동양정공 | D99: 14.3.3 ~ 17.3.2 | E99: 3월 | F99: 탄약 | G99: 사후 | H99: 18년 1월
B100: 138 | C100: 한일피복공업㈜ | D100: 14.3.24 ~ 17.3.23 | E100: 3월 | F100: 전투물자 | G100: 사후 | H100: 18년 1월
B101: 139 | C101: 화신특수섬유휠타㈜ | D101: 14.3.24 ~ 17.3.23 | E101: 3월 | F101: 전투물자 | G101: 갱신 | H101: 1월 1주
B102: 141 | C102: 삼부산업㈜ | D102: 14.4.13 ~ 17.4.12 | E102: 4월 | F102: 전투물자 | G102: 갱신 | H102: 1월 2주
B103: 142 | C103: ㈜트렉스타 | D103: 14.4.13 ~ 17.4.12 | E103: 4월 | F103: 전투물자 | G103: 갱신 | H103: 1월 3주
B104: 145 | C104: (주)동양목재 | D104: 14.10.11 ~ 17.10.10 | E104: 10월 | F104: 전투물자 | G104: 갱신 | H104: 7월 2주
B105: 146 | C105: (주)금아하이드파워 (구,휴엠케이㈜) | D105: 14.12.22 ~ 17.12.21 | E105: 12월 | F105: 기동화력 | G105: 갱신 | H105: 9월 2주
B106: 147 | C106: 제일피복공업㈜ | D106: 14.12.26 ~ 17.12.25 | E106: 12월 | F106: 전투물자 | G106: 갱신 | H106: 9월 3주
B107: 149 | C107: 제일금속 | D107: 14.12.27 ~ 17.12.26 | E107: 12월 | F107: 전투물자 | G107: 갱신 | H107: 9월 3주
B108: 150 | C108: ㈜빅텍 | D108: 15. 2.28 ~ 18. 2.27 | E108: 2월 | F108: 유도전자 | G108: 사후/갱신 | H108: 2월1주/11월4주
B109: 151 | C109: ㈜피플웍스 | D109: 15.4.2 ~ 18.4.1 | E109: 4월 | F109: 유도전자 | G109: 사후 | H109: 3월 3주
B110: 152 | C110: STX조선해양㈜ | D110: 15.5.15 ~ 18.5.14 | E110: 5월 | F110: 함정 | G110: 사후 | H110: 4월 2주
B111: 153 | C111: 밀양공업사 | D111: 15.5.15 ~ 18.5.14 | E111: 5월 | F111: 기동화력 | G111: 사후 | H111: 4월 2주
B112: 154 | C112: 엠플러스에프엔씨㈜ 피복사업본부(구, 군인공제회 제일F&C 피복사업본부) | D112: 15.7.12 ~ 18.7.11 | E112: 7월 | F112: 전투물자 | G112: 사후 | H112: 6월 2주
B113: 155 | C113: 코오롱인더스트리㈜ FnC부문 인천공장 | D113: 15.12.31 ~ 18.12.30 | E113: 12월 | F113: 전투물자 | G113: 사후 | H113: 11월 4주
B114: 156 | C114: ㈜우남마린 | D114: 16.1.21. ~ 19.1.20 | E114: 1월 | F114: 함정 | G114: 사후/사후 | H114: 2월1주/12월3주
B115: 157 | C115: ㈜동원F&B 진천공장 | D115: 16.4.5 ~ 19.4.4 | E115: 4월 | F115: 전투물자 | G115: 사후 | H115: 3월 3주
B116: 158 | C116: 단암시스템즈㈜ | D116: 16.5.21 ~ 19.5.20 | E116: 5월 | F116: 유도전자 | G116: 사후 | H116: 4월 3주
B117: 159 | C117: 선경산업 | D117: 16.6.10 ~ 19.6.9 | E117: 6월 | F117: 전투물자 | G117: 사후 | H117: 5월 1주
B118: 160 | C118: 제트에이치티 구, ㈜에이알텍 | D118: 16.7.2 ~ 19.7.1 | E118: 7월 | F118: 유도전자 | G118: 사후 | H118: 6월 1주
B119: 161 | C119: 한화테크윈㈜ DS사업본부 구, 삼성테크윈㈜ DS사업부 | D119: 16.8.16 ~ 19.8.15 | E119: 8월 | F119: 기동화력 | G119: 사후 | H119: 6월 1주
B120: 162 | C120: ㈜유텔 | D120: 16.8.26 ~ 19.8.25 | E120: 8월 | F120: 유도전자 | G120: 사후 | H120: 6월 2주
B121: 163 | C121: 이엠코리아㈜ 창원지점 | D121: 16.9.16 ~ 19.9.15 | E121: 9월 | F121: 항공 | G121: 사후 | H121: 6월 3주
B122: 164 | C122: ㈜일진전자산업 | D122: 16.9.26 ~ 19.9.25 | E122: 9월 | F122: 유도전자 | G122: 사후 | H122: 6월 4주
B123: 165 | C123: 엘씨텍㈜ | D123: 16.10.21 ~ 19.10.20 | E123: 10월 | F123: 유도전자 | G123: 사후 | H123: 8월 3주
B124: 166 | C124: 대양전기공업㈜ | D124: 16.11.28 ~ 19.11.27 | E124: 11월 | F124: 함정 | G124: 사후 | H124: 8월 4주
B125: 167 | C125: ㈜동원F&B 아산공장 | D125: 13.12.26 ~ 16.12.25 | E125: 12월 | F125: 전투물자 | G125: 사후 | H125: 9월 2주
B126: 168 | C126: ㈜동원F&B 성남공장 | D126: 13.12.27 ~ 16.12.26 | E126: 12월 | F126: 전투물자 | G126: 사후 | H126: 9월 2주
B127: 169 | C127: (주)앤비앤코퍼레이션(구, 나비모드) | D127: 14.3.5 ~ 17.3.4 | E127: 3월 | F127: 전투물자 | G127: 사후 | H127: 18년 1월
B128: 170 | C128: ㈜동우인더스트리 | D128: 14.3.7 ~ 17.3.6 | E128: 3월 | F128: 전투물자 | G128: 사후 | H128: 18년 1월
B129: 173 | C129: 경신금속㈜ | D129: 14.8.28 ~ 17.8.27 | E129: 8월 | F129: 유도전자 | G129: 갱신 | H129: 5월 4주
B130: 174 | C130: ㈜아원 | D130: 14.10.14 ~ 17.10.13 | E130: 10월 | F130: 유도전자 | G130: 갱신 | H130: 7월 2주
B131: 175 | C131: 세아전자㈜ | D131: 14.10.14 ~ 17.10.13 | E131: 10월 | F131: 유도전자 | G131: 갱신 | H131: 7월 2주
B132: 176 | C132: ㈜동인산업 | D132: 14.10.21 ~ 17.10.20 | E132: 10월 | F132: 전투물자 | G132: 갱신 | H132: 7월 3주
B133: 178 | C133: 상일제과㈜ | D133: 15.3.17 ~ 18.3.16 | E133: 3월 | F133: 전투물자 | G133: 사후/갱신 | H133: 2월3주/12월1주
B134: 179 | C134: ㈜ 동표 | D134: 15.3.18 ~ 18.3.17 | E134: 3월 | F134: 전투물자 | G134: 사후/갱신 | H134: 2월3주/12월1주
B135: 180 | C135: ㈜큐니온(구, ㈜정우이엔지) | D135: 15.3.27 ~ 18.3.26 | E135: 3월 | F135: 유도전자 | G135: 사후/갱신 | H135: 2월4주/12월2주
B136: 181 | C136: ㈜수원지관산업 | D136: 15.3.27 ~ 18.3.26 | E136: 3월 | F136: 탄약 | G136: 사후/갱신 | H136: 2월4주/12월2주
B137: 182 | C137: ㈜고려티티알 | D137: 15.3.27 ~ 18.3.26 | E137: 3월 | F137: 전투물자 | G137: 사후/갱신 | H137: 2월4주/12월3주
B138: 183 | C138: ㈜신광테크놀러지 | D138: 15.4.29 ~ 18.4.28 | E138: 4월 | F138: 전투물자 | G138: 사후 | H138: 3월 5주
B139: 184 | C139: 희림상사 | D139: 15.5.20 ~ 18.5.19 | E139: 5월 | F139: 전투물자 | G139: 사후 | H139: 4월 3주
B140: 185 | C140: ㈜삼환티에프 | D140: 15.6.5 ~ 18.6.4 | E140: 6월 | F140: 전투물자 | G140: 사후 | H140: 5월 1주
B141: 186 | C141: 유콘시스템㈜ | D141: 15.8.4 ~ 18.8.3 | E141: 8월 | F141: 항공 | G141: 사후 | H141: 7월 1주
B142: 187 | C142: 티알벨트랙㈜ 금산 2공장 (구, 한국캄소㈜ 금산2공장) | D142: 15.8.24 ~ 18.8.23 | E142: 8월 | F142: 탄약 | G142: 사후 | H142: 7월 4주
B143: 188 | C143: ㈜케이에스씨 | D143: 15.9.11 ~ 18.9.10 | E143: 9월 | F143: 기동화력 | G143: 사후 | H143: 8월 2주
B144: 189 | C144: ㈜구구 | D144: 15.10.26~18.10.25 | E144: 10월 | F144: 유도전자 | G144: 사후 | H144: 8월 5주
B145: 190 | C145: ㈜에이스안테나 | D145: 15.10.26~18.10.25 | E145: 10월 | F145: 유도전자 | G145: 사후 | H145: 8월 4주
B146: 191 | C146: ㈜디앤비(구, 유인테크) | D146: 15.11.10~18.11.9 | E146: 11월 | F146: 기동화력 | G146: 사후 | H146: 10월 1주
B147: 192 | C147: 다산기공 | D147: 15.12.7~18.12.6 | E147: 12월 | F147: 기동화력 | G147: 사후 | H147: 10월 3주
B148: 193 | C148: ㈜경인테크 | D148: 15.12.7~18.12.6 | E148: 12월 | F148: 유도전자 | G148: 사후 | H148: 10월 3주
B149: 195 | C149: 금광테크㈜ | D149: 15.12.30~18.12.29 | E149: 12월 | F149: 기동화력 | G149: 사후 | H149: 11월 3주
B150: 196 | C150: ㈜썬테크 | D150: 15.12.30~18.12.29 | E150: 12월 | F150: 유도전자 | G150: 사후/사후 | H150: 1월2주/11월3주
B151: 197 | C151: (주)진영정기 | D151: 16.1.5~19.1.4 | E151: 1월 | F151: 전투물자 | G151: 사후 | H151: 11월 2주
B152: 198 | C152: 동서식품(주) 진천공장 | D152: 16.1.5~19.1.4 | E152: 1월 | F152: 전투물자 | G152: 사후 | H152: 11월 3주
B153: 199 | C153: ㈜데크카본 | D153: 16.1.12~19.1.11 | E153: 1월 | F153: 기동화력 | G153: 사후 | H153: 11월 4주
B154: 200 | C154: ㈜우경광학 | D154: 16.2.16~19.2.15 | E154: 2월 | F154: 전투물자 | G154: 사후 | H154: 2월 1주
B155: 201 | C155: ㈜케이에스시스템 화성공장 | D155: 16.3.22~19.3.21 | E155: 3월 | F155: 유도전자 | G155: 사후 | H155: 2월 4주
B156: 202 | C156: 한웅 | D156: 16.3.22~19.3.21 | E156: 3월 | F156: 전투물자 | G156: 사후 | H156: 2월 4주
B157: 203 | C157: (주)우성염직 제2공장 | D157: 16.4.1~19.3.31 | E157: 3월 | F157: 전투물자 | G157: 사후 | H157: 3월 2주
B158: 204 | C158: 삼광기계 제2공장 | D158: 16.4.1~19.3.31 | E158: 3월 | F158: 기동화력 | G158: 사후 | H158: 3월 2주
B159: 205 | C159: 씨알푸드 | D159: 16.4.12~19.4.11 | E159: 4월 | F159: 전투물자 | G159: 사후 | H159: 3월 3주
B160: 206 | C160: (주)대명엔지니어링 진주사업장 | D160: 16.4.18~19.4.17 | E160: 4월 | F160: 항공 | G160: 사후 | H160: 3월 3주
B161: 207 | C161: ㈜서한산업 | D161: 16.4.25~19.4.24 | E161: 4월 | F161: 기동화력 | G161: 사후 | H161: 3월 4주
B162: 208 | C162: 삼호정밀 | D162: 16.5.10~19.5.9 | E162: 5월 | F162: 기동화력 | G162: 사후 | H162: 4월 1주
B163: 209 | C163: 대원기전 | D163: 16.6.1~19.5.31 | E163: 5월 | F163: 기동화력 | G163: 사후 | H163: 3월 4주
B164: 210 | C164: 에스지서보㈜ | D164: 16.7.29~19.7.28 | E164: 7월 | F164: 기동화력 | G164: 사후 | H164: 4월 4주
B165: 211 | C165: ㈜무궁화용사촌 | D165: 16.7.29~19.7.28 | E165: 7월 | F165: 전투물자 | G165: 사후 | H165: 6월 4주
B166: 212 | C166: ㈜에스비메탈 | D166: 16.8.12~19.8.11 | E166: 8월 | F166: 유도전자 | G166: 사후 | H166: 4월 1주
B167: 213 | C167: ㈜오뚜기 안양공장 | D167: 16.9.13~19.9.12 | E167: 9월 | F167: 전투물자 | G167: 사후 | H167: 5월 1주
B168: 214 | C168: ㈜오뚜기 대풍공장 | D168: 16.9.13~19.9.12 | E168: 9월 | F168: 전투물자 | G168: 사후 | H168: 5월 1주
B169: 215 | C169: ㈜비앤씨테크 | D169: 16.10.12~19.10.11 | E169: 10월 | F169: 유도전자 | G169: 사후 | H169: 5월 3주
B170: 216 | C170: 대한시스텍 | D170: 16.12.14~19.12.13 | E170: 12월 | F170: 기동화력 | G170: 사후 | H170: 10월 3주
B171: * 전년도 최초 인증 및 갱신 업체의 1차 사후심사일을 이전 심사일 기준 1년 이내로 적용
B172: * 당해 갱신 대상업체는 유효기간 만료일 기준 3개월 전, 2차 사후심사 대상 업체는 유효기간 만료일 1~2개월 전 으로 심사일정 적용

Sheet 16년 심사 횟수 분석
F4: 16년 심사 실시 | H4: 구분 | J4: 심사횟수 | K4: 심사 총MD | L4: 개인 MD
B5: 구 분 | D5: 심사 횟수 | E5: 심사 MD | F5: 비고 | H5: 이달천 | I5: 사후 | J5: 17 | K5: 74 | L5: 33.2
B6: 사후 | C6: 사후 | D6: 88 | E6: 321 | I6: 갱신 | J6: 11 | K6: 61 | L6: 25.2
C7: 변경 | D7: 9 | E7: 44 | F7: 특별 2회, 7MD 포함 | I7: 최초 | J7: 1 | K7: 8 | L7: 2.6
C8: 합계 | D8: =SUM(D6:D7) -> 97 | E8: =SUM(E6:E7) -> 365 | I8: 계 | J8: =SUM(J5:J7) -> 29 | K8: =SUM(K5:K7) -> 143 | L8: 61
B9: 갱신 | C9: 갱신 | D9: 45 | E9: 241 | H9: 김종건 | I9: 사후 | J9: 26 | K9: 89 | L9: 45.5
C10: 변경 | D10: 3 | E10: 13 | F10: 통합 1회, 6MD 포함 | I10: 갱신 | J10: 14 | K10: 85 | L10: 33.3
C11: 합계 | D11: =SUM(D9:D10) -> 48 | E11: =SUM(E9:E10) -> 254 | I11: 최초 | J11: 1 | K11: 6 | L11: 3
B12: 최초 | C12: 1단계 | D12: 19 | E12: 19 | F12: 1회 1MD 로 계산 | I12: 계 | J12: =SUM(J9:J11) -> 41 | K12: =SUM(K9:K11) -> 180 | L12: 81.8
C13: 2단계 | D13: 19 | E13: 122 | F13: 통합 3회, 21MD / ISO 1회 6MD 포함 | H13: 박두일 | I13: 사후 | J13: 12 | K13: 50 | L13: 21.2
C14: 합계 | D14: =SUM(D12:D13) -> 38 | E14: =SUM(E12:E13) -> 141 | I14: 갱신 | J14: 7 | K14: 30 | L14: 15
B15: 합 계 | D15: =SUM(D8+D11+D14) -> 183 | E15: =SUM(E8+E11+E14) -> 760 | I15: 최초 | J15: 10 | K15: 65 | L15: 28.2
I16: 계 | J16: =SUM(J13:J15) -> 29 | K16: =SUM(K13:K15) -> 145 | L16: 64.4
H17: 이종찬 | I17: 사후 | J17: 14 | K17: 48 | L17: 24
I18: 갱신 | J18: 11 | K18: 51 | L18: 22.7
I19: 최초 | J19: 9 | K19: 58 | L19: 22.8
I20: 계 | J20: =SUM(J17:J19) -> 34 | K20: =SUM(K17:K19) -> 157 | L20: 69.5
H21: 이학용 | I21: 사후 | J21: 5 | K21: 19 | L21: 8.5
I22: 갱신 | J22: 2 | K22: 12 | L22: 4
I23: 최초 | J23: - | K23: - | L23: -
I24: 계 | J24: =SUM(J21:J22) -> 7 | K24: =SUM(K21:K22) -> 31 | L24: 12.5
H26: 총 계 | J26: =SUM(J8+J12+J16+J20+J24) -> 140 | K26: =SUM(K8+K12+K16+K20+K24) -> 656 | L26: 289.2
